bitfinex/quotes_BTCUSD_20220303
["timestamp","ask_amount","ask_price","bid_price","bid_amount"]
[1646326925498,0.8988,42471.0,42462.0,0.15554119]
[1646326925753,0.8988,42471.0,42463.0,0.05890124]
[1646326925956,0.03496479,42475.0,42463.0,0.49777658]
[1646326926153,1.4672,42479.0,42465.0,0.01444255]
[1646326926154,0.01176,42478.0,42465.0,0.01444255]
[1646326926451,0.3,42478.0,42468.0,0.15641205]
[1646326926651,0.91056,42479.0,42468.0,0.15641205]
[1646326926851,0.8988,42479.0,42470.0,0.17162589]
[1646326927650,0.8988,42479.0,42464.0,0.01401679]
[1646326927851,0.3,42478.0,42463.0,0.13227728]
[1646326928051,0.3,42478.0,42464.0,0.01349048]
[1646326928252,0.17496056,42475.0,42467.0,0.19559918]
[1646326928552,0.8988,42479.0,42474.0,0.18151221]
[1646326928956,0.01176,42481.0,42475.0,0.16186]
[1646326929152,0.8988,42488.0,42474.0,0.18151221]
[1646326929153,0.33524632,42486.0,42474.0,0.18151221]
[1646326929351,0.33524632,42486.0,42468.0,0.01185415]
[1646326929352,0.33524632,42486.0,42468.0,0.11777705]
[1646326929582,0.33524632,42486.0,42470.0,0.18973354]
[1646326930082,0.39413632,42486.0,42468.0,0.11777705]
[1646326930482,0.39413632,42486.0,42473.0,0.21696262]
[1646326930683,0.1352,42482.0,42473.0,0.21696262]
[1646326930883,0.18080766,42485.0,42476.0,0.16064238]
[1646326931083,0.18080766,42485.0,42474.0,0.0109419]
[1646326931685,0.16431379,42481.0,42474.0,0.0109419]
[1646326931885,0.18080766,42485.0,42474.0,0.0109419]
[1646326932087,0.39413632,42486.0,42476.0,0.17624892]
[1646326932287,0.01175,42485.0,42476.0,0.19223559]
[1646326932484,0.39413632,42486.0,42478.0,0.01435289]
[1646326932687,0.1352,42482.0,42476.0,0.17624892]
[1646326932887,0.18606815,42482.0,42478.0,0.01374165]
[1646326933085,0.1352,42479.0,42477.0,0.009422]
[1646326933342,0.18606815,42482.0,42476.0,0.01387045]
[1646326933546,0.18606815,42482.0,42476.0,0.01303059]
[1646326933946,0.34027197,42482.0,42476.0,0.01303059]
[1646326934148,0.3,42485.0,42476.0,0.01303059]
[1646326934344,0.3,42485.0,42473.0,0.21696262]
[1646326934549,0.3,42485.0,42478.0,0.011476]
[1646326934748,0.1352,42481.0,42474.0,0.01334449]
[1646326934948,0.3,42485.0,42474.0,0.01334449]
[1646326935348,0.19142011,42478.0,42474.0,0.01334449]
[1646326935552,0.19142011,42478.0,42466.0,0.01176]
[1646326935553,0.361795,42477.0,42466.0,0.01176]
[1646326935749,0.661795,42476.0,42468.0,0.01073866]
[1646326935949,0.661795,42476.0,42462.0,0.1205]
[1646326936150,0.3,42476.0,42460.0,0.0113094]
[1646326936349,0.3,42476.0,42462.0,0.01485191]
[1646326936547,0.361795,42475.0,42463.0,0.01041793]
[1646326936750,0.361795,42475.0,42464.0,0.01018878]
[1646326936983,0.058913,42472.0,42466.0,0.01231991]
[1646326937183,0.058913,42472.0,42467.0,0.01182035]
[1646326937389,0.20196436,42470.0,42468.0,0.01142952]
[1646326937588,0.20196436,42470.0,42468.0,0.01038105]
[1646326937783,0.20196436,42470.0,42468.0,0.01497742]
[1646326937984,0.1352,42469.0,42468.0,0.01007868]
[1646326938184,0.1352,42469.0,42462.0,0.176638]
[1646326938385,0.1352,42469.0,42463.0,0.01568191]
[1646326938386,0.3,42469.0,42463.0,0.01568191]
[1646326938586,0.3,42469.0,42464.0,0.01479143]
[1646326938587,0.058919,42468.0,42464.0,0.01479143]
[1646326938785,0.058919,42468.0,42459.0,0.01004313]
[1646326938986,0.058919,42468.0,42460.0,0.01014148]
[1646326939184,0.26158232,42468.0,42462.0,0.01063324]
[1646326939385,0.26158232,42468.0,42458.0,0.01176]
[1646326939587,0.361795,42467.0,42462.0,0.01394043]
[1646326939787,0.41785,42466.0,42458.0,0.01256103]
[1646326939989,0.41785,42466.0,42455.0,0.01313306]
[1646326940293,0.26278878,42460.0,42458.0,0.01125113]
[1646326940488,0.26278878,42460.0,42454.0,0.01521982]
[1646326940745,0.26278878,42460.0,42455.0,0.01161769]
[1646326940946,0.26278878,42460.0,42452.0,0.16405971]
[1646326940947,0.058925,42460.0,42456.0,0.01042588]
[1646326941146,0.058925,42460.0,42452.0,0.17631505]
[1646326941347,0.058925,42460.0,42454.0,0.01486266]
[1646326941549,0.058925,42460.0,42452.0,0.16405971]
[1646326941550,0.058925,42460.0,42455.0,0.01462345]
[1646326941749,0.058925,42460.0,42456.0,0.01006875]
[1646326941948,0.361795,42459.0,42458.0,0.01136979]
[1646326942351,0.361795,42459.0,42452.0,0.16405971]
[1646326942549,0.058925,42460.0,42452.0,0.17533056]
[1646326942748,0.058925,42460.0,42454.0,0.01088842]
[1646326942951,0.058925,42460.0,42455.0,0.01126137]
[1646326943150,0.058925,42460.0,42455.0,0.00126137]
[1646326943550,0.17409589,42456.0,42452.0,0.0156716]
[1646326943754,0.058933,42455.0,42452.0,0.00420467]
[1646326944348,0.18339329,42453.0,42452.0,0.00420467]
[1646326944588,0.31859329,42453.0,42452.0,0.00420467]
[1646326944790,0.98038829,42453.0,42452.0,0.00420467]
[1646326945089,0.94895086,42453.0,42452.0,0.00420467]
[1646326946493,1.0,42452.0,42436.0,0.01105329]
[1646326946693,0.05895,42446.0,42435.0,0.01724767]
[1646326946894,0.429686,42445.0,42435.0,0.01724767]
[1646326947091,0.129686,42445.0,42436.0,0.01021069]
[1646326947292,0.129686,42445.0,42444.0,7.651e-05]
[1646326947492,0.129686,42445.0,42435.0,0.0022]
[1646326947493,0.18146373,42444.0,42436.0,0.01548822]
[1646326947895,0.361795,42443.0,42436.0,0.01548822]
[1646326948096,0.420746,42441.0,42436.0,0.01548822]
[1646326948348,0.420746,42441.0,42435.0,0.01668143]
[1646326948349,0.19473058,42438.0,42435.0,0.01668143]
[1646326948547,0.361795,42440.0,42435.0,0.01668143]
[1646326949546,0.17124664,42436.0,42435.0,0.01668143]
[1646326949751,0.361795,42440.0,42437.0,0.34249328]
[1646326949950,0.496995,42438.0,42437.0,0.33249328]
[1646326950549,0.361795,42438.0,42437.0,0.33249328]
[1646326950753,0.365795,42438.0,42437.0,0.33249328]
[1646326951852,0.709195,42438.0,42437.0,0.12559901]
[1646326952105,1.0,42437.0,42435.0,0.0022]
[1646326952301,0.705195,42436.0,42435.0,0.0022]
[1646326952502,0.98472025,42436.0,42435.0,0.0022]
[1646326952701,0.62292525,42436.0,42435.0,0.0022]
[1646326952901,0.80900531,42436.0,42435.0,0.0022]
[1646326953306,0.14721031,42436.0,42435.0,0.0022]
[1646326953505,0.50900531,42436.0,42435.0,0.0022]
[1646326953705,0.14721031,42436.0,42435.0,0.0022]
[1646326954202,0.50900531,42436.0,42435.0,0.0022]
[1646326954404,0.10381031,42436.0,42435.0,0.0022]
[1646326954606,0.1172,42444.0,42435.0,0.0022]
[1646326954803,0.006,42441.0,42435.0,0.0022]
[1646326955207,0.17863727,42441.0,42435.0,0.0022]
[1646326955506,0.058952,42440.0,42435.0,0.0022]
[1646326956146,0.358952,42440.0,42435.0,0.0022]
[1646326956348,0.1352,42436.0,42435.0,0.0022]
[1646326956547,0.10381031,42436.0,42435.0,0.0022]
[1646326958050,0.76560531,42436.0,42435.0,0.001]
[1646326958649,0.82456731,42436.0,42435.0,0.001]
[1646326958849,1.02628665,42436.0,42435.0,0.001]
[1646326959049,0.46277231,42436.0,42435.0,0.001]
[1646326959494,0.16277231,42436.0,42435.0,0.001]
[1646326959800,0.10381031,42436.0,42429.0,0.002]
[1646326959994,0.102365,42438.0,42429.0,0.002]
[1646326959995,0.058965,42438.0,42429.0,0.002]
[1646326960597,0.16498195,42430.0,42427.0,0.0022]
[1646326960797,0.16498195,42430.0,42429.0,0.009432]
[1646326961198,0.16498195,42430.0,42427.0,0.0022]
[1646326964651,0.1352,42428.0,42427.0,0.0022]
[1646326964854,0.76563716,42428.0,42427.0,0.0022]
[1646326965250,0.76561511,42428.0,42427.0,0.0022]
[1646326965651,1.211795,42427.0,42426.0,0.0005]
[1646326965852,1.35904574,42427.0,42426.0,0.0005]
[1646326966050,1.35904451,42427.0,42426.0,0.0005]
[1646326966255,1.35903961,42427.0,42426.0,0.0005]
[1646326966653,1.255195,42427.0,42426.0,0.0005]
[1646326966852,1.36303839,42427.0,42426.0,0.0005]
[1646326967102,1.46303839,42427.0,42426.0,0.0005]
[1646326967297,1.47481839,42427.0,42426.0,0.0005]
[1646326967696,1.46303839,42427.0,42426.0,0.0005]
[1646326968298,0.61303839,42427.0,42426.0,0.0005]
[1646326968496,0.51303839,42427.0,42426.0,0.0005]
[1646326968697,0.14724339,42427.0,42426.0,0.0005]
[1646326969497,0.70293854,42427.0,42426.0,0.0005]
[1646326969897,0.50903839,42427.0,42426.0,0.0005]
[1646326970496,0.14724339,42427.0,42426.0,0.0005]
[1646326970949,0.15024339,42427.0,42426.0,0.0005]
[1646326971546,0.51203839,42427.0,42426.0,0.0005]
[1646326971743,0.15024339,42427.0,42426.0,0.0005]
[1646326972546,0.51203839,42427.0,42426.0,0.0005]
[1646326973447,0.058973,42426.0,42423.0,0.0004]
[1646326973747,0.11165524,42424.0,42423.0,0.0004]
[1646326974151,0.27374876,42424.0,42423.0,0.0004]
[1646326974352,0.47345024,42424.0,42423.0,0.0004]
[1646326974617,0.11164338,42424.0,42423.0,0.0004]
[1646326974916,0.47343838,42424.0,42423.0,0.0004]
[1646326975122,0.11164338,42424.0,42423.0,0.0004]
[1646326976119,0.11044117,42424.0,42423.0,0.0004]
[1646326976321,0.025,42431.0,42423.0,0.0004]
[1646326976522,0.025,42431.0,42424.0,0.3824677]
[1646326976724,0.33517141,42435.0,42424.0,0.39676506]
[1646326976725,0.03517141,42435.0,42424.0,0.39676506]
[1646326976920,0.003,42429.0,42425.0,0.162132]
[1646326977320,0.003,42429.0,42427.0,0.162119]
[1646326977521,0.003,42429.0,42428.0,0.05925599]
[1646326977720,0.003,42429.0,42428.0,0.20183999]
[1646326977921,0.003,42429.0,42428.0,0.21450447]
[1646326978120,0.003,42429.0,42428.0,0.20183999]
[1646326978374,0.05,42442.0,42431.0,0.17681908]
[1646326978569,0.05,42442.0,42433.0,0.20314065]
[1646326978769,0.19066593,42445.0,42441.0,0.19554506]
[1646326978974,0.03547687,42446.0,42441.0,0.19554506]
[1646326980167,0.03547687,42446.0,42442.0,0.23024642]
[1646326980372,0.03547687,42446.0,42444.0,0.142508]
[1646326980570,0.05,42453.0,42444.0,0.142508]
[1646326980777,0.325,42456.0,42443.0,0.01574225]
[1646326980778,0.025,42456.0,42443.0,0.01574225]
[1646326981169,0.23237936,42456.0,42449.0,0.19639588]
[1646326981470,0.025,42456.0,42451.0,0.16748186]
[1646326982896,0.029,42456.0,42451.0,0.16748186]
[1646326983298,0.029,42456.0,42444.0,0.3]
[1646326983498,0.087934,42456.0,42443.0,0.11785619]
[1646326983699,0.087934,42456.0,42443.0,0.13216386]
[1646326983898,0.087934,42456.0,42444.0,0.01173922]
[1646326984098,0.087934,42456.0,42447.0,0.20043366]
[1646326984099,0.20803309,42450.0,42447.0,0.20043366]
[1646326984297,0.20803309,42450.0,42448.0,0.16251968]
[1646326984697,0.083934,42456.0,42448.0,0.16251968]
[1646326984898,0.002,42455.0,42448.0,0.16451968]
[1646326985298,0.002,42455.0,42448.0,0.36593193]
[1646326985499,0.002,42455.0,42448.0,0.16451968]
[1646326985738,0.002,42455.0,42448.0,0.34501475]
[1646326986138,0.058934,42456.0,42448.0,0.34301475]
[1646326986340,0.058934,42456.0,42448.0,0.16251968]
[1646326986539,0.058934,42456.0,42450.0,0.19205203]
[1646326986737,0.058934,42456.0,42448.0,0.16251968]
[1646326986940,0.060934,42456.0,42448.0,0.16251968]
[1646326987740,0.060934,42456.0,42443.0,0.002]
[1646326987939,0.060934,42456.0,42444.0,0.01403779]
[1646326988139,0.058934,42456.0,42444.0,0.01403779]
[1646326988339,0.058934,42456.0,42444.0,0.01271993]
[1646326988541,0.058934,42456.0,42443.0,0.00022617]
[1646326988741,0.058934,42456.0,42451.0,0.1856056]
[1646326988943,0.8988,42457.0,42452.0,0.142471]
[1646326989243,0.05,42463.0,42454.0,0.01590325]
[1646326989479,0.3,42465.0,42462.0,0.15901801]
[1646326989689,0.8988,42468.0,42456.0,0.0116824]
[1646326989880,0.8988,42468.0,42462.0,0.20723755]
[1646326990284,0.8988,42468.0,42463.0,0.26021269]
[1646326990482,0.8988,42468.0,42463.0,0.27214242]
[1646326990682,0.3,42472.0,42463.0,0.27214242]
[1646326990880,0.17826659,42470.0,42463.0,0.12973042]
[1646326991084,0.055,42473.0,42463.0,0.12973042]
[1646326991279,0.055,42473.0,42463.0,0.11780069]
[1646326991280,0.005,42473.0,42463.0,0.11780069]
[1646326991479,0.005,42473.0,42461.0,0.05890802]
[1646326991683,0.15612565,42464.0,42460.0,0.01371058]
[1646326991880,0.15612565,42464.0,42452.0,0.05766933]
[1646326991881,0.134,42461.0,42452.0,0.0434]
[1646326992080,0.385377,42468.0,42452.0,0.0434]
[1646326992283,0.05892,42465.0,42452.0,0.05654054]
[1646326992481,0.05717092,42465.0,42452.0,0.0434]
[1646326992681,0.05717092,42465.0,42455.0,0.15565721]
[1646326993083,0.361837,42464.0,42456.0,0.18321675]
[1646326993537,0.361837,42464.0,42455.0,0.15565721]
[1646326993738,0.05717092,42465.0,42455.0,0.15565721]
[1646326993739,0.20930386,42463.0,42455.0,0.15565721]
[1646326993940,0.05717092,42465.0,42455.0,0.21457375]
[1646326994143,0.0353,42469.0,42457.0,0.142435]
[1646326994144,0.01176,42469.0,42457.0,0.142435]
[1646326994342,0.01176,42469.0,42459.0,0.11780424]
[1646326994541,0.8988,42470.0,42463.0,0.1854482]
[1646326994741,0.8988,42470.0,42459.0,0.12857616]
[1646326994944,0.19574988,42468.0,42462.0,0.18151157]
[1646326995141,0.002,42469.0,42462.0,0.17667405]
[1646326995342,0.002,42469.0,42459.0,0.11780424]
[1646326995544,0.002,42469.0,42456.0,0.3589149]
[1646326995742,0.002,42469.0,42456.0,0.0589149]
[1646326995743,0.134,42465.0,42456.0,0.0589149]
[1646326995941,0.361837,42468.0,42456.0,0.0589149]
[1646326996142,0.361837,42468.0,42459.0,0.1952686]
[1646326996342,0.361837,42467.0,42453.0,0.4157]
[1646326996542,0.8988,42470.0,42453.0,0.4157]
[1646326996543,0.058915,42468.0,42453.0,0.4157]
[1646326996742,0.058915,42468.0,42455.0,0.05891673]
[1646326997184,0.16785178,42465.0,42459.0,0.19280013]
[1646326997384,0.16785178,42465.0,42459.0,0.1659666]
[1646326997587,0.16785178,42465.0,42456.0,0.142442]
[1646326997984,0.058915,42468.0,42455.0,0.07443098]
[1646326998187,0.8988,42470.0,42459.0,0.05891091]
[1646326998385,0.93461361,42470.0,42459.0,0.05891091]
[1646326998588,1.13422927,42470.0,42459.0,0.05891091]
[1646326998997,0.16106509,42467.0,42459.0,0.05891091]
[1646326999391,0.361837,42466.0,42451.0,0.01177]
[1646326999589,0.361837,42466.0,42451.0,0.01134444]
[1646326999888,0.15861134,42460.0,42450.0,0.01273515]
[1646327000092,0.8988,42463.0,42448.0,0.01269803]
[1646327000293,0.361837,42462.0,42448.0,0.20901799]
[1646327000488,0.058935,42454.0,42448.0,0.19857168]
[1646327001142,0.058935,42454.0,42447.0,0.01466966]
[1646327001344,0.058935,42454.0,42442.0,0.1232]
[1646327001549,0.058935,42454.0,42439.0,0.01464791]
[1646327001945,0.058935,42454.0,42442.0,6.096e-05]
[1646327002145,0.18743366,42453.0,42445.0,0.15975336]
[1646327002344,0.058935,42454.0,42445.0,0.36756557]
[1646327002748,1.10761171,42456.0,42445.0,0.36756557]
[1646327003146,0.8988,42456.0,42445.0,0.36756557]
[1646327003344,0.8988,42456.0,42448.0,0.18307387]
[1646327003744,0.8988,42456.0,42445.0,0.36756557]
[1646327003944,0.058934,42454.0,42445.0,0.36756557]
[1646327004345,0.21020757,42453.0,42445.0,0.36756557]
[1646327004878,0.21020757,42453.0,42447.0,0.20687438]
[1646327005082,0.21020757,42453.0,42446.0,0.01288268]
[1646327005281,0.058934,42454.0,42446.0,0.01288268]
[1646327005680,0.8988,42456.0,42450.0,0.01393165]
[1646327006381,0.1990543,42455.0,42452.0,0.1619483]
[1646327006583,0.134,42453.0,42444.0,0.01433571]
[1646327006783,0.2579883,42455.0,42444.0,0.01433571]
[1646327006982,0.058934,42455.0,42443.0,0.0124345]
[1646327007181,0.058934,42455.0,42443.0,0.01157829]
[1646327007381,0.17570475,42447.0,42444.0,0.01187662]
[1646327007583,0.058934,42455.0,42443.0,0.00042668]
[1646327007785,0.117892,42451.0,42439.0,0.01356001]
[1646327008435,0.361837,42450.0,42441.0,0.00021336]
[1646327008632,0.361837,42450.0,42441.0,0.00064008]
[1646327009135,0.20048645,42447.0,42441.0,0.00021336]
[1646327009335,0.20048645,42447.0,42440.0,0.05894176]
[1646327009635,0.058945,42452.0,42445.0,0.19230463]
[1646327009833,0.361837,42451.0,42445.0,0.19230463]
[1646327010434,0.20322729,42450.0,42445.0,0.19230463]
[1646327010735,0.361837,42447.0,42445.0,0.19230463]
[1646327011230,0.21517665,42448.0,42445.0,0.19230463]
[1646327012088,0.361837,42450.0,42445.0,0.19230463]
[1646327012489,0.05894,42452.0,42446.0,0.3]
[1646327012691,0.03562627,42455.0,42446.0,0.35885262]
[1646327012894,0.005,42450.0,42448.0,0.16677397]
[1646327013094,0.005,42450.0,42447.0,0.01569571]
[1646327013491,0.134,42448.0,42442.0,0.12889902]
[1646327013693,0.361837,42449.0,42439.0,0.01412581]
[1646327013891,0.361837,42449.0,42447.0,0.009428]
[1646327014092,0.495837,42448.0,42447.0,0.009428]
[1646327015294,0.495837,42448.0,42438.0,0.003]
[1646327015492,0.26167801,42449.0,42438.0,0.003]
[1646327015493,0.361837,42447.0,42438.0,0.003]
[1646327015739,0.21451201,42449.0,42438.0,0.003]
[1646327015740,0.361837,42441.0,42438.0,0.003]
[1646327017038,0.367837,42441.0,42438.0,0.003]
[1646327017438,0.17391354,42439.0,42438.0,0.003]
[1646327018239,0.66975054,42439.0,42438.0,0.003]
[1646327018639,0.84917964,42439.0,42438.0,0.003]
[1646327019039,0.85217964,42439.0,42438.0,0.003]
[1646327019687,1.0,42438.0,42426.0,0.04922]
[1646327019885,0.420813,42430.0,42426.0,0.04922]
[1646327020686,0.18712337,42429.0,42426.0,0.04922]
[1646327020890,0.361837,42428.0,42426.0,0.04922]
[1646327021488,0.062976,42430.0,42426.0,0.04922]
[1646327021489,0.004,42430.0,42426.0,0.04922]
[1646327021689,0.004,42430.0,42426.0,0.053652]
[1646327022088,0.004,42430.0,42428.0,0.16557432]
[1646327022387,0.10381521,42429.0,42426.0,0.22931967]
[1646327022592,0.03610746,42434.0,42428.0,0.19627832]
[1646327022990,0.006,42434.0,42428.0,0.19627832]
[1646327023471,0.16538768,42434.0,42433.0,0.19685324]
[1646327023667,0.14,42434.0,42433.0,0.19685324]
[1646327023865,0.006,42434.0,42433.0,0.19685324]
[1646327024166,0.0472,42440.0,42433.0,0.19685324]
[1646327024366,0.361837,42439.0,42436.0,0.20356384]
[1646327024567,0.3,42443.0,42436.0,0.20356384]
[1646327024568,0.10381031,42437.0,42436.0,0.20356384]
[1646327024766,0.058953,42442.0,42436.0,0.20356384]
[1646327024965,0.005,42439.0,42435.0,6.113e-05]
[1646327025365,0.361837,42438.0,42435.0,0.00012226]
[1646327025564,0.361837,42438.0,42435.0,0.00018339]
[1646327025764,0.361837,42438.0,42435.0,0.00012226]
[1646327026168,0.361837,42438.0,42435.0,6.113e-05]
[1646327026366,0.361837,42438.0,42434.0,0.1685277]
[1646327026565,0.058953,42442.0,42434.0,0.1685277]
[1646327026866,0.18679176,42439.0,42434.0,0.1685277]
[1646327027084,0.058953,42442.0,42434.0,0.1685277]
[1646327027284,0.361837,42441.0,42434.0,0.1685277]
[1646327027887,0.004,42443.0,42435.0,0.442547]
[1646327028086,0.004,42443.0,42442.0,0.19020208]
[1646327028287,0.17806289,42445.0,42442.0,0.19020208]
[1646327028488,0.17806289,42445.0,42435.0,0.3]
[1646327028886,0.17806289,42445.0,42439.0,0.16775929]
[1646327029285,0.17806289,42445.0,42433.0,0.0102248]
[1646327029485,0.17806289,42445.0,42440.0,6.066e-05]
[1646327029887,0.134,42441.0,42440.0,0.00012132]
[1646327030088,0.495837,42441.0,42440.0,0.00018198]
[1646327030288,0.66947186,42441.0,42440.0,0.00018198]
[1646327030487,0.66947186,42441.0,42440.0,0.00012132]
[1646327030734,0.66947186,42441.0,42431.0,0.11788609]
[1646327030937,0.058947,42445.0,42438.0,6.066e-05]
[1646327031137,0.361837,42439.0,42438.0,6.066e-05]
[1646327031338,0.361837,42439.0,42438.0,0.00012132]
[1646327031535,0.361837,42439.0,42438.0,0.00018198]
[1646327031936,0.361837,42439.0,42438.0,0.00012132]
[1646327032137,0.56388669,42439.0,42438.0,6.066e-05]
[1646327032438,0.20204969,42439.0,42436.0,6.067e-05]
[1646327032635,0.361837,42438.0,42436.0,6.067e-05]
[1646327032836,0.361837,42438.0,42436.0,0.00012134]
[1646327033035,0.361837,42438.0,42436.0,0.00018201]
[1646327033438,0.361837,42438.0,42436.0,0.00012134]
[1646327033638,0.361837,42438.0,42431.0,0.18598364]
[1646327033835,0.004,42439.0,42431.0,0.18598364]
[1646327034237,0.004,42439.0,42432.0,0.64336682]
[1646327034486,0.004,42439.0,42433.0,0.21608393]
[1646327034784,0.32702352,42450.0,42440.0,0.17562822]
[1646327034984,0.20602352,42450.0,42440.0,0.17562822]
[1646327035185,0.20577245,42450.0,42441.0,0.17347198]
[1646327035384,0.20577245,42450.0,42439.0,0.05893779]
[1646327035585,0.07354,42451.0,42434.0,0.4244]
[1646327035789,0.01178,42453.0,42434.0,0.4244]
[1646327036088,0.01178,42453.0,42435.0,0.01150637]
[1646327036389,0.18650464,42450.0,42444.0,0.21722397]
[1646327036588,0.058939,42451.0,42444.0,0.21722397]
[1646327036788,1.0198,42456.0,42444.0,0.21722397]
[1646327036789,0.01176,42455.0,42444.0,0.21722397]
[1646327036987,0.01176,42455.0,42445.0,0.18522426]
[1646327036988,0.006,42455.0,42445.0,0.18522426]
[1646327037589,0.1603472,42452.0,42445.0,0.18522426]
[1646327037786,0.361837,42451.0,42443.0,0.009428]
[1646327037988,0.1603472,42452.0,42443.0,0.009428]
[1646327038229,0.361837,42451.0,42433.0,0.6397]
[1646327038428,0.2782362,42452.0,42433.0,0.6397]
[1646327038634,0.117889,42452.0,42438.0,0.18413925]
[1646327038828,0.17284711,42447.0,42438.0,0.18413925]
[1646327039229,0.117889,42452.0,42438.0,0.18413925]
[1646327039430,0.3,42451.0,42438.0,0.18413925]
[1646327039629,0.2052142,42445.0,42438.0,0.18413925]
[1646327039830,0.3,42451.0,42438.0,0.18413925]
[1646327040030,0.117889,42452.0,42438.0,0.18280569]
[1646327040230,0.17717762,42450.0,42438.0,0.18280569]
[1646327040428,0.3,42451.0,42443.0,0.21064944]
[1646327040628,0.361837,42451.0,42443.0,0.21064944]
[1646327040832,0.16810625,42450.0,42443.0,0.21064944]
[1646327041030,0.33966255,42450.0,42443.0,0.21064944]
[1646327041429,0.28490546,42449.0,42438.0,0.001]
[1646327041634,0.361837,42447.0,42438.0,0.001]
[1646327041995,0.117895,42447.0,42438.0,0.001]
[1646327042188,0.20351721,42443.0,42434.0,0.01001082]
[1646327042388,0.26246421,42443.0,42436.0,0.17686162]
[1646327042587,0.26246421,42443.0,42434.0,0.01001082]
[1646327042993,0.41791,42442.0,42430.0,0.01493639]
[1646327043490,0.16258851,42435.0,42431.0,0.14256]
[1646327043691,0.16258851,42435.0,42428.0,0.01178]
[1646327044790,0.35336137,42435.0,42428.0,0.01178]
[1646327044989,0.35736137,42435.0,42428.0,0.01178]
[1646327045192,0.65736137,42435.0,42428.0,0.01178]
[1646327045395,0.65736137,42435.0,42423.0,0.00073618]
[1646327045591,0.05897,42432.0,42423.0,0.00090427]
[1646327045834,0.65736137,42435.0,42423.0,0.00090427]
[1646327045835,0.0472,42433.0,42423.0,0.00090427]
[1646327046034,0.16658851,42435.0,42424.0,0.142594]
[1646327046035,0.01578,42435.0,42424.0,0.142594]
[1646327046237,0.1668,42443.0,42432.0,0.2114512]
[1646327046238,0.33966255,42438.0,42432.0,0.2114512]
[1646327046439,0.33966255,42442.0,42434.0,0.01248881]
[1646327046736,0.37517918,42445.0,42436.0,0.01003096]
[1646327046936,0.33966255,42445.0,42439.0,0.19199205]
[1646327047134,0.33966255,42445.0,42440.0,0.05893555]
[1646327047336,0.001,42446.0,42441.0,0.142522]
[1646327048338,0.8988,42448.0,42441.0,0.142522]
[1646327048536,0.8988,42448.0,42440.0,0.05893555]
[1646327048737,1.1988,42448.0,42439.0,0.01362042]
[1646327049035,1.1988,42448.0,42440.0,0.009429]
[1646327049036,0.33966255,42447.0,42440.0,0.009429]
[1646327049489,0.33966255,42446.0,42433.0,0.21802065]
[1646327049686,0.18269878,42442.0,42434.0,0.34670726]
[1646327049887,0.3,42445.0,42434.0,0.34670726]
[1646327050087,0.33966255,42446.0,42437.0,6.03e-05]
[1646327050291,0.33966255,42446.0,42438.0,0.142531]
[1646327050488,0.33966255,42447.0,42438.0,0.142531]
[1646327050690,0.33966255,42447.0,42441.0,0.16170931]
[1646327050889,0.24270534,42442.0,42441.0,0.08631328]
[1646327051090,0.24270534,42442.0,42441.0,0.23950313]
[1646327051890,0.24270534,42442.0,42441.0,0.4410656]
[1646327052100,0.19419197,42443.0,42441.0,0.44530567]
[1646327052393,0.19419197,42443.0,42442.0,0.35895035]
[1646327052590,0.19419197,42443.0,42442.0,0.42307035]
[1646327053736,0.19419197,42443.0,42442.0,0.206636]
[1646327053937,0.19419197,42443.0,42442.0,0.142516]
[1646327054137,0.05,42451.0,42442.0,0.142516]
[1646327054138,0.24270534,42444.0,42442.0,0.142516]
[1646327054338,0.24270534,42444.0,42443.0,0.142511]
[1646327055238,0.24270534,42444.0,42436.0,0.01321229]
[1646327055239,0.24270534,42444.0,42436.0,0.142535]
[1646327055438,0.19420212,42441.0,42436.0,0.142535]
[1646327055643,0.19420212,42441.0,42436.0,0.29901699]
[1646327055838,0.19420212,42440.0,42436.0,0.142535]
[1646327056037,0.19420212,42440.0,42438.0,0.16327365]
[1646327056237,0.19420212,42440.0,42439.0,0.142531]
[1646327056638,0.19420212,42441.0,42439.0,0.142531]
[1646327057104,0.19420212,42440.0,42439.0,0.142531]
[1646327057409,0.19420212,42440.0,42438.0,0.142534]
[1646327057807,0.19420212,42441.0,42438.0,0.142534]
[1646327058004,0.42177455,42443.0,42438.0,0.142534]
[1646327058005,0.19420212,42440.0,42438.0,0.142534]
[1646327058406,0.19420212,42440.0,42438.0,0.34143772]
[1646327059004,0.19520212,42440.0,42438.0,0.40037511]
[1646327059205,0.19520212,42440.0,42438.0,0.20147139]
[1646327059206,0.001,42440.0,42438.0,0.20147139]
[1646327059404,0.19520212,42440.0,42438.0,0.142534]
[1646327059605,0.19420212,42439.0,42438.0,0.142534]
[1646327059806,0.24370534,42440.0,42438.0,0.142534]
[1646327060306,0.24270534,42440.0,42438.0,0.142534]
[1646327061332,0.24270534,42441.0,42438.0,0.142534]
[1646327061533,0.24270534,42440.0,42438.0,0.142534]
[1646327061733,0.24270534,42441.0,42438.0,0.142534]
[1646327062538,0.19426812,42439.0,42438.0,0.20147149]
[1646327063035,0.24270534,42441.0,42438.0,0.20147149]
[1646327063236,0.19428257,42439.0,42438.0,0.20147149]
[1646327063436,0.19428351,42439.0,42438.0,0.20147149]
[1646327063635,0.19428102,42439.0,42438.0,0.35705672]
[1646327063836,0.19428102,42439.0,42438.0,0.20147149]
[1646327064238,0.24270534,42440.0,42438.0,0.20147149]
[1646327064486,0.19425065,42439.0,42438.0,0.21068746]
[1646327064689,0.24270534,42441.0,42438.0,0.20125846]
[1646327064889,0.19426136,42439.0,42438.0,0.20125846]
[1646327065294,0.24270534,42440.0,42438.0,0.20125846]
[1646327065588,0.24270534,42440.0,42439.0,0.15373666]
[1646327065991,0.24270534,42440.0,42439.0,0.14253]
[1646327066588,0.24270534,42441.0,42439.0,0.15641811]
[1646327066789,0.24270534,42441.0,42439.0,0.14253]
[1646327066988,0.001,42440.0,42439.0,0.15467501]
[1646327067588,0.24370534,42440.0,42439.0,0.15467501]
[1646327068232,0.24370534,42440.0,42439.0,0.16410401]
[1646327068435,0.24270534,42440.0,42439.0,0.16410401]
[1646327068636,0.24270534,42440.0,42439.0,0.15467501]
[1646327069236,0.2912464,42443.0,42439.0,0.15467501]
[1646327069237,0.24270534,42441.0,42439.0,0.15467501]
[1646327070938,0.24270534,42440.0,42434.0,0.14664189]
[1646327071140,0.24270534,42440.0,42434.0,0.17018189]